fUST/lending_fUST_20250909
["ID","MTS","AMOUNT","RATE_DAILY","PERIOD"]
[384443560,1757418649032,-480.0,0.00013698,2]
[384443561,1757418649042,-484.0890797,0.00013698,2]
[384443563,1757418649051,-483.25104609,0.00013698,2]
[384443565,1757418649061,-480.0,0.00013698,2]
[384443567,1757418649071,-480.0,0.00013698,2]
[384443569,1757418649081,-480.0,0.00013698,2]
[384443571,1757418649091,-480.0,0.00013698,2]
[384443573,1757418649100,-480.0,0.00013698,2]
[384443575,1757418649110,-480.0,0.00013698,2]
[384443577,1757418649126,-480.0,0.00013698,2]
[384443578,1757418649136,-484.35950344,0.00013698,2]
[384443580,1757418649146,-480.0,0.00013698,2]
[384443582,1757418649156,-481.19921792,0.00013698,2]
[384443584,1757418649165,-483.75456902,0.00013698,2]
[384443586,1757418649175,-480.0,0.00013698,2]
[384443588,1757418649184,-480.0,0.00013698,2]
[384443590,1757418649193,-480.0,0.00013698,2]
[384443592,1757418649202,-480.0,0.00013698,2]
[384443594,1757418649212,-422.2851627,0.00013698,2]
[384443595,1757418649221,-480.0,0.00013698,2]
[384443597,1757418649230,-480.0,0.00013698,2]
[384443599,1757418649239,-480.0,0.00013698,2]
[384443601,1757418649248,-480.0,0.00013698,2]
[384443603,1757418649258,-480.0,0.00013698,2]
[384443605,1757418649267,-510.99022519,0.00013698,2]
[384443607,1757418649277,-480.0,0.00013698,2]
[384443609,1757418649286,-480.0,0.00013698,2]
[384443611,1757418649295,-485.47386582,0.00013698,2]
[384443612,1757418649306,-480.0,0.00013698,2]
[384443614,1757418649315,-513.31,0.00013698,2]
[384443616,1757418649326,-480.0,0.00013698,2]
[384443618,1757418649336,-480.0,0.00013698,2]
[384443620,1757418649345,-601.75679412,0.00013698,2]
[384443622,1757418649355,-480.0,0.00013698,2]
[384443624,1757418649365,-480.0,0.00013698,2]
[384443626,1757418649375,-480.0,0.00013698,2]
[384443628,1757418649384,-544.34,0.00013698,2]
[384443630,1757418649394,-485.3992557,0.00013698,2]
[384443632,1757418649403,-480.0,0.00013698,2]
[384443634,1757418649412,-480.0,0.00013698,2]
[384443636,1757418649422,-615.84999281,0.00013698,2]
[384443638,1757418649431,-480.0,0.00013698,2]
[384443640,1757418649440,-480.0,0.00013698,2]
[384443641,1757418649450,-188.42026816,0.00013698,2]
[384443643,1757418649460,-480.0,0.00013698,2]
[384443645,1757418649469,-489.01416016,0.00013698,2]
[384443647,1757418649479,-480.0,0.00013698,2]
[384443649,1757418649489,-480.0,0.00013698,2]
[384443651,1757418649498,-480.0,0.00013698,2]
[384443653,1757418649507,-480.0,0.00013698,2]
[384443654,1757418649516,-480.0,0.00013698,2]
[384443656,1757418649525,-224.91874474,0.00013698,2]
[384443658,1757418649534,-151.0,0.00013698,2]
[384443660,1757418649545,-151.0,0.00013698,2]
[384443661,1757418649554,-151.0,0.00013698,2]
[384443663,1757418649564,-151.0,0.00013698,2]
[384443665,1757418649573,-151.0,0.00013698,2]
[384443667,1757418649584,-480.0,0.00013698,2]
[384443669,1757418649594,-151.0,0.00013698,2]
[384443671,1757418649604,-480.0,0.00013698,2]
[384443672,1757418649616,-151.0,0.00013698,2]
[384443674,1757418649627,-151.0,0.00013698,2]
[384443676,1757418649638,-480.0,0.00013698,2]
[384443678,1757418649647,-216.714825,0.00013698,2]
[384443680,1757418649656,-480.0,0.00013698,2]
[384443681,1757418649666,-480.0,0.00013698,2]
[384443683,1757418649675,-49.47292219,0.00013698,2]
[384444225,1757418807964,202.0,0.00025,30]
[384444227,1757418842119,502.84229302,0.00013315,2]
[384444229,1757418931481,5390.3671931,0.00025,30]
[384444233,1757419051941,1035.0402619,0.00013216,2]
[384444234,1757419051969,304.85222025,0.00013216,2]
[384444235,1757419076667,401.15301597,0.00013253,2]
[384444236,1757419101250,401.15301597,0.00013253,2]
[384444238,1757419126241,401.15301597,0.00013253,2]
[384444240,1757419151238,401.15301597,0.00013253,2]
[384444241,1757419176084,401.15301597,0.00013253,2]
[384444242,1757419200094,401.15301597,0.00013253,2]
[384444243,1757419224211,2840.08249828,0.00013253,2]
[384444244,1757419241655,2438.92948231,0.00013253,2]
[384444245,1757419250640,2438.92948231,0.00013253,2]
[384444246,1757419269139,300.0,0.00013252,2]
[384444247,1757419278475,300.0,0.00013252,2]
[384444248,1757419294861,300.0,0.00013252,2]
[384444250,1757419304492,300.0,0.00013252,2]
[384444251,1757419321782,300.0,0.00013252,2]
[384444252,1757419331103,300.0,0.00013252,2]
[384444253,1757419348384,194.11818888,0.00013252,2]
[384444254,1757419357744,1500.0,0.00013252,2]
[384444255,1757419383632,1500.0,0.00013252,2]
[384444256,1757419408803,1500.0,0.00013252,2]
[384444257,1757419434014,1500.0,0.00013252,2]
[384444258,1757419458799,1500.0,0.00013252,2]
[384444259,1757419484454,1025.50582113,0.00013252,2]
[384444262,1757419610547,376.32228212,0.00012857,2]
[384444263,1757419613476,1503.78383935,0.00012857,2]
[384444615,1757419660183,300.0,0.00013246,2]
[384444618,1757419818075,322.48147322,0.0001325,2]
[384444664,1757419836455,-614.01773707,0.00013384,2]
[384444665,1757419836467,-255.57243791,0.00013384,2]
[384444666,1757419836479,-330.40982502,0.00013384,2]
[384444668,1757419836488,-300.0,0.00013385,2]
[384444670,1757419836497,-300.0,0.00013385,2]
[384444672,1757419836507,-53.55138693,0.00013385,2]
[384444674,1757419836518,-246.44861307,0.00013385,2]
[384444676,1757419836528,-300.0,0.00013385,2]
[384444678,1757419836537,-300.0,0.00013385,2]
[384444679,1757419836547,-1200.0,0.00013386,2]
[384444680,1757419836556,-500.0,0.00013387,2]
[384444681,1757419836566,-500.0,0.00013387,2]
[384444682,1757419836575,-500.0,0.00013387,2]
[384444683,1757419836584,-500.0,0.00013387,2]
[384444684,1757419836593,-438.92948231,0.00013387,2]
[384444685,1757419836603,-20161.34510718,0.00013387,2]
[384444686,1757419836612,-1589.88495175,0.00013432,2]
[384444687,1757419836622,-1589.88495175,0.00013474,2]
[384444689,1757419836633,-162.380719,0.0001348,2]
[384444691,1757419836643,-232.49071433,0.0001348,2]
[384444692,1757419836654,-2030.296672,0.0001348,2]
[384444693,1757419836664,-151.0,0.0001348,2]
[384444694,1757419836673,-151.0,0.0001348,2]
[384444695,1757419836682,-151.0,0.0001348,2]
[384444696,1757419836691,-151.0,0.0001348,2]
[384444697,1757419836700,-151.0,0.0001348,2]
[384444698,1757419836708,-206.52084601,0.0001348,2]
[384444699,1757419836718,-500.0,0.00013487,2]
[384444700,1757419836727,-401.33648039,0.00013487,2]
[384444701,1757419836736,-270.31342572,0.00013487,2]
[384444702,1757419836745,-500.0,0.00013487,2]
[384444703,1757419836755,-500.0,0.00013487,2]
[384444704,1757419836765,-500.0,0.00013487,2]
[384444705,1757419836774,-424.81268191,0.00013487,2]
[384444706,1757419836783,-500.0,0.00013487,2]
[384444707,1757419836793,-500.0,0.00013487,2]
[384444708,1757419836802,-500.0,0.00013487,2]
[384444709,1757419836811,-342.95311176,0.00013487,2]
[384444710,1757419836820,-500.0,0.00013487,2]
[384444711,1757419836830,-500.0,0.00013487,2]
[384444712,1757419836839,-500.0,0.00013487,2]
[384444713,1757419836848,-500.0,0.00013487,2]
[384444714,1757419836858,-500.0,0.00013487,2]
[384444715,1757419836867,-500.0,0.00013487,2]
[384444716,1757419836876,-500.0,0.00013487,2]
[384444717,1757419836889,-500.0,0.00013487,2]
[384444718,1757419836898,-500.0,0.00013487,2]
[384444719,1757419836907,-219.48119621,0.00013487,2]
[384444720,1757419836916,-500.0,0.00013487,2]
[384444721,1757419836925,-500.0,0.00013487,2]
[384444722,1757419836935,-500.0,0.00013487,2]
[384444723,1757419836944,-500.0,0.00013487,2]
[384444724,1757419836953,-500.0,0.00013487,2]
[384444725,1757419836962,-500.0,0.00013487,2]
[384444726,1757419837125,-500.0,0.00013487,2]
[384444727,1757419837138,-500.0,0.00013487,2]
[384444728,1757419837148,-500.0,0.00013487,2]
[384444730,1757419837161,-405.96869254,0.00013487,2]
[384444731,1757419837171,-500.0,0.00013487,2]
[384444732,1757419837180,-500.0,0.00013487,2]
[384444733,1757419837190,-500.0,0.00013487,2]
[384444734,1757419837200,-500.0,0.00013487,2]
[384444735,1757419837209,-500.0,0.00013487,2]
[384444736,1757419837218,-500.0,0.00013487,2]
[384444737,1757419837228,-500.0,0.00013487,2]
[384444738,1757419837237,-500.0,0.00013487,2]
[384444739,1757419837247,-500.0,0.00013487,2]
[384444740,1757419837256,-500.0,0.00013487,2]
[384444741,1757419837265,-154959.53046695,0.00013488,2]
[384444742,1757419837277,-8165.53947241,0.00013488,2]
[384444743,1757419837291,-324.08921439,0.00013488,2]
[384444744,1757419837302,-10046.19163911,0.00013488,2]
[384444745,1757419837314,-2976.78361274,0.00013488,2]
[384444746,1757419837325,-1166.93915018,0.00013488,2]
[384444791,1757419838148,-8449.67974552,0.00013488,2]
[384444796,1757419838198,-183911.2466987,0.00013488,2]
[384444798,1757419838208,-1589.88495175,0.00013515,2]
[384444800,1757419838218,-1828.86,0.00013532,2]
[384444802,1757419838229,-2105.41764886,0.00013535,2]
[384444804,1757419838238,-1589.88495175,0.00013557,2]
[384444806,1757419838248,-437.7393991,0.0001359,2]
[384444808,1757419838257,-1589.88495175,0.00013598,2]
[384444810,1757419838267,-500.94915532,0.00013673,2]
[384444812,1757419838276,-503.10320852,0.00013673,2]
[384444814,1757419838286,-501.75686912,0.00013673,2]
[384444816,1757419838296,-500.0,0.00013673,2]
[384444818,1757419838306,-217.65034598,0.00013683,2]
[384444820,1757419838315,-530.79566296,0.00013683,2]
[384444822,1757419838326,-160.0,0.00013683,2]
[384444824,1757419838336,-417.15472785,0.00013683,2]
[384444826,1757419838345,-233.05759179,0.00013683,2]
[384444829,1757419838355,-160.0,0.00013683,2]
[384444831,1757419838365,-203.28455737,0.00013683,2]
[384444833,1757419838374,-846.80158213,0.00013683,2]
[384444834,1757419838386,-5027.5671341,0.00013698,2]
[384444836,1757419838395,-480.0,0.00013698,2]
[384444838,1757419838404,-201.3412741,0.00013698,2]
[384444840,1757419838414,-480.0,0.00013698,2]
[384444842,1757419838423,-27998.2699948,0.00013698,2]
[384444845,1757419838433,-480.0,0.00013698,2]
[384444847,1757419838442,-480.0,0.00013698,2]
[384444848,1757419838451,-480.0,0.00013698,2]
[384444851,1757419838461,-486.66925585,0.00013698,2]
[384444853,1757419838470,-151.0,0.00013698,2]
[384444855,1757419838480,-151.0,0.00013698,2]
[384444856,1757419838489,-485.8674501,0.00013698,2]
[384444857,1757419838498,-480.0,0.00013698,2]
[384444858,1757419838507,-480.0,0.00013698,2]
[384444859,1757419838516,-480.0,0.00013698,2]
[384444860,1757419838525,-480.0,0.00013698,2]
[384444861,1757419838535,-480.0,0.00013698,2]
[384444862,1757419838545,-593.68092878,0.00013698,2]
[384444863,1757419838554,-488.28847588,0.00013698,2]
[384444864,1757419838563,-363.97690342,0.00013698,2]
[384444865,1757419838572,-480.0,0.00013698,2]
[384444866,1757419838582,-480.0,0.00013698,2]
[384444867,1757419838591,-480.0,0.00013698,2]
[384444868,1757419838600,-488.34625054,0.00013698,2]
[384444869,1757419838610,-480.0,0.00013698,2]
[384444870,1757419838619,-480.0,0.00013698,2]
[384444871,1757419838629,-480.0,0.00013698,2]
[384444872,1757419838639,-266.79076574,0.00013698,2]
[384444873,1757419838648,-480.0,0.00013698,2]
[384444874,1757419838657,-480.0,0.00013698,2]
[384444875,1757419838666,-480.0,0.00013698,2]
[384444876,1757419838675,-482.66488377,0.00013698,2]
[384444877,1757419838686,-480.0,0.00013698,2]
[384444878,1757419838695,-480.0,0.00013698,2]
[384444879,1757419838704,-591.74,0.00013698,2]
[384444881,1757419838713,-480.0,0.00013698,2]
[384444883,1757419838723,-480.0,0.00013698,2]
[384444885,1757419838732,-481.91891233,0.00013698,2]
[384444887,1757419838741,-480.0,0.00013698,2]
[384444889,1757419838750,-480.0,0.00013698,2]
[384444891,1757419838759,-480.0,0.00013698,2]
[384444893,1757419838769,-480.0,0.00013698,2]
[384444895,1757419838778,-480.0,0.00013698,2]
[384444897,1757419838787,-480.0,0.00013698,2]
[384444898,1757419838796,-166.35502102,0.00013698,2]
[384444900,1757419838805,-356.8862492,0.00013698,2]
[384444902,1757419838814,-480.0,0.00013698,2]
[384444904,1757419838823,-480.0,0.00013698,2]
[384444906,1757419838833,-559.3473552,0.00013698,2]
[384444908,1757419838842,-480.0,0.00013698,2]
[384444910,1757419838851,-480.0,0.00013698,2]
[384444912,1757419838861,-480.0,0.00013698,2]
[384444914,1757419838871,-480.0,0.00013698,2]
[384444916,1757419838882,-480.0,0.00013698,2]
[384444918,1757419838893,-484.9431375,0.00013698,2]
[384444920,1757419838902,-480.0,0.00013698,2]
[384444922,1757419838911,-480.0,0.00013698,2]
[384444924,1757419838921,-480.0,0.00013698,2]
[384444926,1757419838930,-480.0,0.00013698,2]
[384444928,1757419838939,-480.0,0.00013698,2]
[384444930,1757419838948,-480.0,0.00013698,2]
[384444932,1757419838958,-480.0,0.00013698,2]
[384444934,1757419838967,-480.0,0.00013698,2]
[384444936,1757419838977,-480.0,0.00013698,2]
[384444938,1757419838986,-480.0,0.00013698,2]
[384444940,1757419838996,-480.0,0.00013698,2]
[384444942,1757419839006,-480.0,0.00013698,2]
[384444944,1757419839015,-480.0,0.00013698,2]
[384444946,1757419839025,-480.0,0.00013698,2]
[384444948,1757419839034,-480.0,0.00013698,2]
[384444950,1757419839044,-480.0,0.00013698,2]
[384444952,1757419839053,-480.0,0.00013698,2]
[384444954,1757419839062,-480.0,0.00013698,2]
[384444956,1757419839072,-480.0,0.00013698,2]
[384444958,1757419839081,-480.0,0.00013698,2]
[384444960,1757419839090,-480.0,0.00013698,2]
[384444962,1757419839100,-480.0,0.00013698,2]
[384444964,1757419839109,-241.512295,0.00013698,2]
[384444966,1757419839119,-480.0,0.00013698,2]
[384444968,1757419839128,-761.27,0.00013698,2]
[384444970,1757419839140,-480.0,0.00013698,2]
[384444972,1757419839152,-480.0,0.00013698,2]
[384444974,1757419839163,-483.63718701,0.00013698,2]
[384444976,1757419839173,-480.0,0.00013698,2]
[384444978,1757419839183,-790.84,0.00013698,2]
[384444980,1757419839193,-480.0,0.00013698,2]
[384444982,1757419839202,-480.0,0.00013698,2]
[384444984,1757419839212,-480.0,0.00013698,2]
[384444986,1757419839222,-336.206,0.00013698,2]
[384444988,1757419839232,-630.34,0.00013698,2]
[384444990,1757419839241,-480.0,0.00013698,2]
[384444992,1757419839250,-480.0,0.00013698,2]
[384444994,1757419839261,-480.0,0.00013698,2]
[384444996,1757419839270,-198.36953511,0.00013698,2]
[384444998,1757419839279,-480.0,0.00013698,2]
[384444999,1757419839288,-480.0,0.00013698,2]
[384445001,1757419839298,-480.0,0.00013698,2]
[384445003,1757419839307,-480.0,0.00013698,2]
[384445006,1757419839317,-402.43944923,0.00013698,2]
[384445008,1757419839326,-484.64092514,0.00013698,2]
[384445010,1757419839336,-480.0,0.00013698,2]
[384445012,1757419839345,-483.36841889,0.00013698,2]
[384445014,1757419839354,-480.0,0.00013698,2]
[384445015,1757419839364,-480.0,0.00013698,2]
[384445017,1757419839373,-480.0,0.00013698,2]
[384445019,1757419839382,-706.72,0.00013698,2]
[384445021,1757419839393,-151.0,0.00013698,2]
[384445023,1757419839402,-480.0,0.00013698,2]
[384445025,1757419839411,-151.0,0.00013698,2]
[384445027,1757419839420,-480.0,0.00013698,2]
[384445029,1757419839429,-151.0,0.00013698,2]
[384445031,1757419839438,-282.958365,0.00013698,2]
[384445033,1757419839448,-480.0,0.00013698,2]
[384445035,1757419839457,-19434.9085194,0.00013698,2]
[384445037,1757419839467,-480.0,0.00013698,2]
[384445039,1757419839476,-480.0,0.00013698,2]
[384445041,1757419839485,-480.0,0.00013698,2]
[384445043,1757419839495,-480.0,0.00013698,2]
[384445045,1757419839504,-480.0,0.00013698,2]
[384445047,1757419839513,-480.0,0.00013698,2]
[384445049,1757419839522,-480.0,0.00013698,2]
[384445051,1757419839531,-480.0,0.00013698,2]
[384445053,1757419839540,-480.0,0.00013698,2]
[384445055,1757419839549,-480.0,0.00013698,2]
[384445056,1757419839558,-348.1399198,0.00013698,2]
[384445058,1757419839568,-480.0,0.00013698,2]
[384445060,1757419839577,-480.0,0.00013698,2]
[384445062,1757419839586,-481.41411573,0.00013698,2]
[384445064,1757419839597,-480.0,0.00013698,2]
[384445065,1757419839607,-480.0,0.00013698,2]
[384445066,1757419839615,-623.55,0.00013698,2]
[384445067,1757419839625,-480.0,0.00013698,2]
[384445068,1757419839634,-482.66200625,0.00013698,2]
[384445069,1757419839646,-560.8,0.00013698,2]
[384445070,1757419839655,-593.82,0.00013698,2]
[384445071,1757419839664,-480.0,0.00013698,2]
[384445072,1757419839674,-151.0,0.00013698,2]
[384445073,1757419839683,-151.0,0.00013698,2]
[384445074,1757419839693,-480.0,0.00013698,2]
[384445075,1757419839702,-612.93,0.00013698,2]
[384445076,1757419839711,-524.93989348,0.00013698,2]
[384445077,1757419839720,-480.0,0.00013698,2]
[384445078,1757419839730,-480.0,0.00013698,2]
[384445079,1757419839740,-480.0,0.00013698,2]
[384445080,1757419839749,-480.0,0.00013698,2]
[384445081,1757419839759,-480.0,0.00013698,2]
[384445082,1757419839768,-480.0,0.00013698,2]
[384445083,1757419839778,-480.0,0.00013698,2]
[384445084,1757419839786,-241.47489464,0.00013698,2]
[384445086,1757419839796,-480.0,0.00013698,2]
[384445087,1757419839805,-480.0,0.00013698,2]
[384445089,1757419839815,-480.0,0.00013698,2]
[384445090,1757419839824,-480.0,0.00013698,2]
[384445092,1757419839833,-426.92799805,0.00013698,2]
[384445094,1757419839842,-482.21545096,0.00013698,2]
[384445095,1757419839851,-480.0,0.00013698,2]
[384445097,1757419839860,-480.0,0.00013698,2]
[384445099,1757419839869,-480.0,0.00013698,2]
[384445100,1757419839878,-485.15676787,0.00013698,2]
[384445102,1757419839888,-480.0,0.00013698,2]
[384445103,1757419839898,-281.312631,0.00013698,2]
[384445105,1757419839907,-480.0,0.00013698,2]
[384445106,1757419839916,-480.0,0.00013698,2]
[384445108,1757419839925,-424.97058835,0.00013698,2]
[384445110,1757419839934,-480.0,0.00013698,2]
[384445112,1757419839943,-489.55957842,0.00013698,2]
[384445113,1757419839952,-480.0,0.00013698,2]
[384445114,1757419839961,-480.0,0.00013698,2]
[384445115,1757419839971,-480.0,0.00013698,2]
[384445116,1757419839980,-480.0,0.00013698,2]
[384445117,1757419839990,-480.0,0.00013698,2]
[384445118,1757419839999,-480.0,0.00013698,2]
[384445119,1757419840008,-868.33,0.00013698,2]
[384445120,1757419840018,-485.35226245,0.00013698,2]
[384445121,1757419840027,-480.0,0.00013698,2]
[384445122,1757419840036,-480.0,0.00013698,2]
[384445123,1757419840045,-480.0,0.00013698,2]
[384445124,1757419840054,-480.0,0.00013698,2]
[384445125,1757419840064,-480.0,0.00013698,2]
[384445126,1757419840073,-480.0,0.00013698,2]
[384445127,1757419840082,-480.0,0.00013698,2]
[384445128,1757419840092,-480.0,0.00013698,2]
[384445129,1757419840101,-480.0,0.00013698,2]
[384445130,1757419840110,-480.0,0.00013698,2]
[384445131,1757419840119,-289.39703927,0.00013698,2]
[384445132,1757419840129,-480.0,0.00013698,2]
[384445133,1757419840138,-480.0,0.00013698,2]
[384445134,1757419840148,-480.0,0.00013698,2]
[384445135,1757419840161,-483.31129139,0.00013698,2]
[384445136,1757419840171,-480.0,0.00013698,2]
[384445137,1757419840180,-480.0,0.00013698,2]
[384445138,1757419840190,-480.0,0.00013698,2]
[384445139,1757419840200,-480.0,0.00013698,2]
[384445140,1757419840209,-480.0,0.00013698,2]
[384445141,1757419840218,-480.0,0.00013698,2]
[384445142,1757419840229,-480.0,0.00013698,2]
[384445143,1757419840240,-480.0,0.00013698,2]
[384445144,1757419840249,-480.0,0.00013698,2]
[384445145,1757419840259,-480.0,0.00013698,2]
[384445146,1757419840268,-480.0,0.00013698,2]
[384445147,1757419840277,-480.0,0.00013698,2]
[384445148,1757419840287,-521.97,0.00013698,2]
[384445149,1757419840296,-289.41986477,0.00013698,2]
[384445150,1757419840305,-151.0,0.00013698,2]
[384445151,1757419840314,-480.0,0.00013698,2]
[384445152,1757419840324,-480.0,0.00013698,2]
[384445153,1757419840333,-480.0,0.00013698,2]
[384445154,1757419840342,-546.14,0.00013698,2]
[384445155,1757419840352,-462.41429711,0.00013698,2]
[384445156,1757419840361,-480.0,0.00013698,2]
[384445157,1757419840370,-472.92792878,0.00013698,2]
[384445158,1757419840380,-480.0,0.00013698,2]
[384445159,1757419840390,-171.9137872,0.00013698,2]
[384445160,1757419840400,-480.0,0.00013698,2]
[384445161,1757419840409,-480.0,0.00013698,2]
[384445162,1757419840418,-480.0,0.00013698,2]
[384445163,1757419840427,-480.0,0.00013698,2]
[384445164,1757419840437,-151.0,0.00013698,2]
[384445165,1757419840446,-151.0,0.00013698,2]
[384445166,1757419840455,-194.640422,0.00013698,2]
[384445167,1757419840465,-480.0,0.00013698,2]
[384445168,1757419840476,-480.0,0.00013698,2]
[384445169,1757419840485,-1691.02,0.00013698,2]
[384445170,1757419840494,-998.69,0.00013698,2]
[384445171,1757419840504,-480.0,0.00013698,2]
[384445172,1757419840513,-480.0,0.00013698,2]
[384445173,1757419840522,-480.0,0.00013698,2]
[384445174,1757419840531,-605.40758822,0.00013698,2]
[384445175,1757419840541,-480.0,0.00013698,2]
[384445176,1757419840550,-480.0,0.00013698,2]
[384445177,1757419840559,-480.0,0.00013698,2]
[384445178,1757419840568,-480.0,0.00013698,2]
[384445179,1757419840578,-635.95,0.00013698,2]
[384445180,1757419840587,-480.0,0.00013698,2]
[384445181,1757419840596,-1225.81,0.00013698,2]
[384445182,1757419840605,-565.74,0.00013698,2]
[384445183,1757419840615,-480.0,0.00013698,2]
[384445184,1757419840624,-480.0,0.00013698,2]
[384445185,1757419840633,-480.0,0.00013698,2]
[384445186,1757419840643,-480.0,0.00013698,2]
[384445187,1757419840652,-480.0,0.00013698,2]
[384445188,1757419840662,-480.0,0.00013698,2]
[384445189,1757419840671,-486.79009347,0.00013698,2]
[384445190,1757419840682,-480.0,0.00013698,2]
[384445191,1757419840691,-480.0,0.00013698,2]
[384445192,1757419840700,-480.0,0.00013698,2]
[384445193,1757419840709,-480.0,0.00013698,2]
[384445194,1757419840718,-480.0,0.00013698,2]
[384445195,1757419840727,-480.0,0.00013698,2]
[384445196,1757419840871,-480.0,0.00013698,2]
[384445197,1757419840881,-480.0,0.00013698,2]
[384445198,1757419840890,-642.17,0.00013698,2]
[384445199,1757419840899,-151.0,0.00013698,2]
[384445200,1757419840908,-169.215452,0.00013698,2]
[384445201,1757419840918,-480.0,0.00013698,2]
[384445202,1757419840927,-2640.61,0.00013698,2]
[384445203,1757419840936,-480.0,0.00013698,2]
[384445204,1757419840946,-480.0,0.00013698,2]
[384445205,1757419840955,-151.0,0.00013698,2]
[384445206,1757419840964,-151.0,0.00013698,2]
[384445207,1757419840973,-2089.04,0.00013698,2]
[384445208,1757419840982,-480.0,0.00013698,2]
[384445209,1757419840992,-480.0,0.00013698,2]
[384445210,1757419841001,-482.13806269,0.00013698,2]
[384445211,1757419841010,-480.0,0.00013698,2]
[384445212,1757419841019,-881.51,0.00013698,2]
[384445213,1757419841028,-480.0,0.00013698,2]
[384445214,1757419841037,-151.0,0.00013698,2]
[384445215,1757419841047,-174.796989,0.00013698,2]
[384445216,1757419841056,-883.0,0.00013698,2]
[384445217,1757419841066,-749.5,0.00013698,2]
[384445218,1757419841076,-480.0,0.00013698,2]
[384445219,1757419841085,-480.0,0.00013698,2]
[384445220,1757419841094,-1299.22,0.00013698,2]
[384445221,1757419841103,-151.0,0.00013698,2]
[384445222,1757419841112,-151.0,0.00013698,2]
[384445223,1757419841121,-169.132796,0.00013698,2]
[384445224,1757419841130,-480.0,0.00013698,2]
[384445225,1757419841140,-548.87,0.00013698,2]
[384445226,1757419841150,-480.0,0.00013698,2]
[384445227,1757419841163,-480.0,0.00013698,2]
[384445228,1757419841172,-480.0,0.00013698,2]
[384445229,1757419841181,-480.0,0.00013698,2]
[384445230,1757419841191,-480.0,0.00013698,2]
[384445231,1757419841201,-480.0,0.00013698,2]
[384445232,1757419841210,-480.0,0.00013698,2]
[384445233,1757419841219,-585.34310964,0.00013698,2]
[384445234,1757419841230,-480.0,0.00013698,2]
[384445235,1757419841239,-826.37,0.00013698,2]
[384445236,1757419841248,-480.0,0.00013698,2]
[384445237,1757419841257,-480.0,0.00013698,2]
[384445238,1757419841270,-151.0,0.00013698,2]
[384445239,1757419841279,-151.0,0.00013698,2]
[384445240,1757419841289,-480.0,0.00013698,2]
[384445241,1757419841298,-480.0,0.00013698,2]
[384445242,1757419841307,-480.0,0.00013698,2]
[384445243,1757419841318,-480.0,0.00013698,2]
[384445244,1757419841327,-14060.21,0.00013698,2]
[384445245,1757419841338,-480.0,0.00013698,2]
[384445246,1757419841347,-480.0,0.00013698,2]
[384445247,1757419841356,-480.0,0.00013698,2]
[384445248,1757419841366,-703.85,0.00013698,2]
[384445249,1757419841375,-480.0,0.00013698,2]
[384445250,1757419841385,-500.0,0.00013698,2]
[384445251,1757419841395,-500.0,0.00013698,2]
[384445252,1757419841405,-500.0,0.00013698,2]
[384445253,1757419841414,-500.0,0.00013698,2]
[384445254,1757419841423,-500.0,0.00013698,2]